[Event "Ruzomberok Closed 2020 - 3. turnaj"]
[Site "Ruzomberok, Slovakia"]
[Date "2020.09.05"]
[Round "7.8"]
[White "Grib, Stefan"]
[Black "Hajtmansky, Milan"]
[Result "1-0"]
[TimeControl "10m + 5s"]
[WhiteElo "1429"]
[BlackElo "1590"]

1. d4 {[%clk 00:10:02]} e6 {[%clk 00:10:06]} {[%emt 00:00:10]} 2. Bf4 {[%clk
00:10:05]} {[%emt 00:00:03]} c5 {[%clk 00:10:02]} {[%emt 00:00:09]} 3. c3
{[%clk 00:10:04]} {[%emt 00:00:07]} Nc6 {[%clk 00:10:02]} {[%emt 00:00:04]} 4.
e3 {[%clk 00:10:07]} {[%emt 00:00:02]} cxd4 {[%clk 00:09:58]} {[%emt 00:00:09]}
5. cxd4 {[%clk 00:10:04]} {[%emt 00:00:07]} Bb4+ {[%clk 00:09:51]} {[%emt
00:00:13]} 6. Nd2 {[%clk 00:10:04]} {[%emt 00:00:05]} Nf6 {[%clk 00:09:48]}
{[%emt 00:00:08]} 7. a3 {[%clk 00:10:06]} {[%emt 00:00:03]} Bxd2+ 8. Qxd2
{[%clk 00:10:09]} O-O {[%clk 00:09:33]} {[%emt 00:00:13]} 9. Bd3 {[%clk
00:10:11]} {[%emt 00:00:03]} b6 {[%clk 00:09:24]} {[%emt 00:00:11]} 10. Nf3
{[%clk 00:10:14]} {[%emt 00:00:04]} d5 {[%clk 00:09:07]} {[%emt 00:00:22]} 11.
O-O {[%clk 00:10:09]} {[%emt 00:00:11]} Bb7 {[%clk 00:09:05]} {[%emt 00:00:07]}
12. b4 {[%clk 00:10:07]} {[%emt 00:00:06]} a6 {[%clk 00:08:55]} {[%emt
00:00:15]} 13. h3 {[%clk 00:10:06]} {[%emt 00:00:06]} h6 {[%clk 00:08:49]}
{[%emt 00:00:11]} 14. Rac1 {[%clk 00:10:00]} {[%emt 00:00:11]} Rc8 {[%clk
00:08:49]} {[%emt 00:00:05]} 15. Qe2 {[%clk 00:09:34]} {[%emt 00:00:29]} Qd7
{[%clk 00:08:43]} {[%emt 00:00:13]} 16. Bxa6 {[%clk 00:09:28]} {[%emt
00:00:12]} Bxa6 {[%clk 00:08:10]} {[%emt 00:00:37]} 17. Qxa6 {[%clk 00:09:31]}
{[%emt 00:00:02]} Qa7 {[%clk 00:07:43]} {[%emt 00:00:32]} 18. Qxa7 {[%clk
00:08:42]} {[%emt 00:00:54]} Nxa7 {[%clk 00:07:46]} {[%emt 00:00:02]} 19. Bc7
{[%clk 00:08:26]} {[%emt 00:00:21]} Ne4 {[%clk 00:07:32]} {[%emt 00:00:19]} 20.
Bxb6 {[%clk 00:08:24]} {[%emt 00:00:07]} Nb5 {[%clk 00:07:19]} {[%emt
00:00:18]} 21. Bc5 {[%clk 00:08:09]} {[%emt 00:00:21]} Rfe8 {[%clk 00:07:09]}
{[%emt 00:00:14]} 22. a4 {[%clk 00:08:11]} {[%emt 00:00:04]} Nbc3 {[%clk
00:07:05]} {[%emt 00:00:08]} 23. Rfe1 {[%clk 00:07:42]} {[%emt 00:00:34]} Nxa4
{[%clk 00:06:44]} {[%emt 00:00:27]} 24. Ra1 {[%clk 00:07:15]} {[%emt 00:00:31]}
Nac3 {[%emt 00:00:37]} 25. Ra7 {[%emt 00:00:10]} Ra8 {[%clk 00:05:35]} {[%emt
00:00:27]} 26. Rea1 {[%clk 00:07:19]} {[%emt 00:00:02]} Rxa7 {[%clk 00:05:19]}
{[%emt 00:00:21]} 27. Rxa7 {[%clk 00:07:22]} {[%emt 00:00:02]} Nb5 {[%clk
00:05:10]} {[%emt 00:00:14]} 28. Ra5 {[%clk 00:06:59]} {[%emt 00:00:28]} Nbc3
{[%clk 00:05:05]} {[%emt 00:00:10]} 29. Ne5 {[%clk 00:06:43]} {[%emt 00:00:21]}
Ne2+ {[%clk 00:04:39]} {[%emt 00:00:31]} 30. Kf1 {[%clk 00:06:40]} {[%emt
00:00:08]} N2c3 {[%clk 00:04:38]} {[%emt 00:00:05]} 31. Ra7 {[%clk 00:06:41]}
{[%emt 00:00:04]} Nd2+ {[%clk 00:04:21]} {[%emt 00:00:22]} 32. Ke1 {[%clk
00:06:32]} {[%emt 00:00:13]} Nde4 {[%clk 00:04:17]} {[%emt 00:00:10]} 33. Rxf7
{[%clk 00:06:32]} {[%emt 00:00:05]} Ra8 {[%clk 00:04:17]} {[%emt 00:00:06]} 34.
Ra7 {[%clk 00:06:32]} {[%emt 00:00:05]} Rxa7 {[%clk 00:04:07]} {[%emt
00:00:15]} 35. Bxa7 {[%clk 00:06:35]} {[%emt 00:00:03]} Nb5 {[%clk 00:03:55]}
{[%emt 00:00:16]} 36. Bc5 {[%clk 00:06:25]} {[%emt 00:00:15]} Ned6 {[%clk
00:03:42]} {[%emt 00:00:18]} 37. Kd2 {[%clk 00:06:15]} {[%emt 00:00:15]} Ne4+
{[%clk 00:03:12]} {[%emt 00:00:35]} 38. Ke2 {[%clk 00:06:13]} {[%emt 00:00:07]}
g5 {[%clk 00:03:02]} {[%emt 00:00:14]} 39. f3 {[%clk 00:06:12]} {[%emt
00:00:07]} Nec3+ {[%clk 00:02:58]} {[%emt 00:00:09]} 40. Kd3 {[%clk 00:06:07]}
{[%emt 00:00:10]} Kg7 {[%clk 00:02:55]} {[%emt 00:00:08]} 41. e4 {[%clk
00:05:58]} {[%emt 00:00:14]} dxe4+ {[%clk 00:02:43]} {[%emt 00:00:17]} 42. fxe4
{[%clk 00:05:58]} {[%emt 00:00:04]} Kf6 {[%clk 00:02:31]} {[%emt 00:00:17]} 43.
Ng4+ {[%clk 00:05:38]} {[%emt 00:00:25]} Kg6 {[%clk 00:02:31]} {[%emt
00:00:06]} 44. Ne3 {[%clk 00:05:41]} {[%emt 00:00:03]} Na4 {[%clk 00:02:29]}
{[%emt 00:00:06]} 45. Kc4 {[%clk 00:05:29]} {[%emt 00:00:16]} Nc7 {[%clk
00:02:25]} {[%emt 00:00:08]} 46. Nd1 {[%clk 00:05:24]} {[%emt 00:00:12]} h5
{[%clk 00:02:15]} {[%emt 00:00:15]} 47. Kb3 {[%clk 00:05:27]} {[%emt 00:00:02]}
Nxc5+ {[%clk 00:02:00]} {[%emt 00:00:20]} 48. dxc5 {[%clk 00:05:30]} {[%emt
00:00:02]} Kf6 {[%clk 00:01:54]} {[%emt 00:00:10]} 49. Kc4 {[%clk 00:05:22]}
{[%emt 00:00:13]} Ke5 {[%clk 00:01:58]} {[%emt 00:00:01]} 50. Nc3 {[%clk
00:05:19]} {[%emt 00:00:08]} Ne8 {[%clk 00:01:57]} {[%emt 00:00:06]} 51. b5
{[%clk 00:05:23]} {[%emt 00:00:02]} g4 {[%clk 00:01:54]} {[%emt 00:00:08]} 52.
b6 {[%clk 00:05:26]} {[%emt 00:00:02]} Nc7 {[%clk 00:01:55]} {[%emt 00:00:03]}
53. b7 {[%clk 00:05:04]} {[%emt 00:00:28]} 1-0